bitfinex/quotes_SOLUSD_20240917
["timestamp","ask_amount","ask_price","bid_price","bid_amount"]
[1726561092312,43.776884,132.96,132.9,0.260412]
[1726561093819,7.5231,132.93,132.9,0.260412]
[1726561094003,7.5233,132.92,132.9,0.260412]
[1726561094314,62.580084,132.96,132.9,0.260412]
[1726561094315,7.5238,132.91,132.9,0.260412]
[1726561096210,7.5238,132.91,132.86,0.260412]
[1726561096211,23.776884,132.91,132.86,0.260412]
[1726561096517,7.5259,132.88,132.86,0.260412]
[1726561097913,7.5253,132.89,132.86,0.260412]
[1726561099602,7.5246,132.9,132.86,0.260412]
[1726561102197,7.5246,132.9,132.86,7.787012]
[1726561102902,7.5251,132.89,132.86,0.260412]
[1726561105929,7.5256,132.88,132.86,0.260412]
[1726561106431,13.39581222,132.93,132.86,0.260412]
[1726561106432,18.8115,132.9,132.86,0.260412]
[1726561106629,7.5261,132.87,132.86,0.260412]
[1726561109239,7.5259,132.88,132.86,0.260412]
[1726561109535,7.5261,132.87,132.86,0.260412]
[1726561112720,7.5256,132.88,132.86,0.260412]
[1726561117238,7.5261,132.87,132.86,0.260412]
[1726561119643,7.5257,132.88,132.86,0.260412]
[1726561119943,7.5246,132.9,132.86,7.787112]
[1726561120143,7.5239,132.91,132.87,7.5259]
[1726561120445,11.70449503,132.95,132.88,16.1651]
[1726561120446,7.75439974,132.95,132.88,16.1651]
[1726561120620,7.5233,132.93,132.88,23.6906]
[1726561121230,7.5233,132.93,132.89,7.5249]
[1726561121848,7.5222,132.94,132.9,7.5244]
[1726561122047,7.523,132.93,132.88,16.1651]
[1726561122266,17.86488436,132.93,132.88,16.1651]
[1726561123352,7.5238,132.92,132.88,16.1651]
[1726561123558,7.5238,132.92,132.88,23.6906]
[1726561125742,7.5228,132.93,132.88,23.6906]
[1726561126139,7.5228,132.93,132.89,7.525]
[1726561126347,7.5223,132.94,132.89,7.525]
[1726561127069,7.5217,132.95,132.91,7.5237]
[1726561127363,7.5211,132.96,132.92,14.0985]
[1726561135252,7.5211,132.96,132.92,6.5753]
[1726561142998,18.8001,132.98,132.92,6.5753]
[1726561143310,7.5223,132.94,132.92,6.5753]
[1726561150204,7.5218,132.95,132.92,6.5753]
[1726561156109,7.5222,132.94,132.92,6.5753]
[1726561156398,7.5227,132.93,132.89,13.5391]
[1726561165402,7.5234,132.92,132.89,6.0141]
[1726561168021,7.5239,132.91,132.89,6.0141]
[1726561169308,7.5239,132.91,132.88,16.1651]
[1726561170210,36.07720436,132.96,132.88,16.1651]
[1726561170211,7.5245,132.9,132.88,16.1651]
[1726561171421,7.5245,132.9,132.87,18.8144]
[1726561178001,7.5234,132.92,132.88,7.5254]
[1726561185030,18.8056,132.94,132.86,0.260412]
[1726561185031,23.776884,132.93,132.86,0.260412]
[1726561185217,7.5251,132.89,132.86,0.260412]
[1726561186307,7.5246,132.9,132.86,7.787112]
[1726561199744,7.5246,132.9,132.86,26.603812]
[1726561200443,7.5229,132.93,132.88,18.8137]
[1726561200620,7.5229,132.93,132.89,7.5245]
[1726561201539,7.5223,132.94,132.89,7.5245]
[1726561201747,7.5216,132.95,132.9,33.9409]
[1726561202640,7.5216,132.95,132.91,7.5238]
[1726561202839,7.5216,132.95,132.9,33.9409]
[1726561203342,7.5216,132.95,132.9,41.4651]
[1726561203725,7.5212,132.96,132.92,7.5232]
[1726561211453,23.776884,132.97,132.9,33.9409]
[1726561212486,7.5223,132.94,132.9,41.4651]
[1726561217967,7.5228,132.93,132.89,7.5249]
[1726561220463,7.5214,132.96,132.91,7.5235]
[1726561221003,7.5214,132.96,132.92,7.5233]
[1726561221575,7.5214,132.96,132.91,26.3328]
[1726561222728,7.5214,132.96,132.92,7.5231]
[1726561223198,7.5214,132.96,132.91,26.3328]
[1726561224903,7.5214,132.96,132.92,7.5233]
[1726561231113,7.5197,132.99,132.94,7.5217]
[1726561231307,7.5197,132.99,132.93,20.31103129]
[1726561231308,7.5197,132.99,132.93,18.8066]
[1726561231513,7.5199,132.98,132.93,18.8066]
[1726561232715,0.260412,133.0,132.93,18.8066]
[1726561232716,7.5195,132.99,132.95,7.5216]
[1726561232917,7.779312,133.0,132.96,7.5208]
[1726561233119,7.779312,133.0,132.95,18.8033]
[1726561233120,7.5195,132.99,132.95,26.3247]
[1726561241420,7.5199,132.98,132.95,18.8033]
[1726561241631,7.5205,132.97,132.93,7.5223]
[1726561242042,7.5216,132.95,132.92,18.8072]
[1726561243160,23.284012,133.0,132.9,7.5244]
[1726561243161,7.5222,132.94,132.9,7.5244]
[1726561247457,7.5217,132.95,132.9,7.5244]
[1726561248434,28.43302841,132.98,132.89,18.8116]
[1726561248642,23.776884,132.97,132.89,26.3364]
[1726561250466,7.523,132.93,132.89,26.3364]
[1726561252664,7.5222,132.94,132.9,7.5244]
[1726561258049,3.94472634,132.98,132.91,18.8093]
[1726561258459,7.5201,132.98,132.91,35.3549]
[1726561258679,7.5201,132.98,132.94,7.5221]
[1726561262148,7.5215,132.96,132.91,24.0693]
[1726561262674,7.5215,132.96,132.92,7.5232]
[1726561262874,7.5215,132.96,132.91,24.0692]
[1726561263850,7.5205,132.97,132.92,18.8079]
[1726561264050,24.20513834,133.0,132.94,7.5221]
[1726561264351,7.5206,132.97,132.93,7.5226]
[1726561267682,7.5212,132.96,132.92,26.331]
[1726561268274,7.5216,132.95,132.92,18.8079]
[1726561268473,7.5216,132.95,132.91,24.0693]
[1726561269857,7.5211,132.96,132.92,7.5229]
[1726561270558,7.5206,132.97,132.93,7.5227]
[1726561271183,22.74342634,132.99,132.93,7.5227]
[1726561271184,7.52,132.98,132.94,7.522]
[1726561272382,7.52,132.98,132.93,26.3289]
[1726561273351,7.5211,132.96,132.93,18.8064]
[1726561280095,27.72161034,132.99,132.93,18.8064]
[1726561281490,7.5211,132.96,132.93,18.8064]
[1726561282377,7.5216,132.95,132.91,24.0693]
[1726561284304,7.5211,132.96,132.92,7.5232]
[1726561285189,3.94472634,132.99,132.92,18.8081]
[1726561285372,7.52,132.98,132.94,7.5217]
[1726561292700,7.5209,132.97,132.92,26.331]
[1726561292872,7.5211,132.96,132.92,26.331]
[1726561294100,7.0211,132.96,132.92,26.331]
[1726561295702,24.037296,133.0,132.92,18.8081]
[1726561296008,7.5203,132.98,132.94,7.5221]
[1726561297300,7.5195,132.99,132.94,7.5221]
[1726561298190,11.47051337,132.99,132.94,7.5221]
[1726561298401,7.5195,132.99,132.94,7.5221]
[1726561298775,11.47047832,132.99,132.94,7.5221]
[1726561299078,7.5195,132.99,132.95,7.5214]
[1726561299278,11.47047832,132.99,132.95,7.5214]
[1726561299495,7.5195,132.99,132.94,26.3268]
[1726561300003,11.47047832,132.99,132.94,26.3268]
[1726561300601,7.5205,132.97,132.94,18.8049]
[1726561302271,7.521,132.96,132.92,7.5231]
[1726561308912,3.95097832,132.97,132.91,35.3541]
[1726561309087,11.47147832,132.97,132.93,7.5227]
[1726561310301,11.47147832,132.97,132.92,7.5231]
[1726561310605,7.5211,132.96,132.91,42.8777]
[1726561310912,7.5211,132.96,132.92,5.66964769]
[1726561311080,7.5211,132.96,132.92,7.5232]
[1726561313780,7.5211,132.96,132.91,42.8778]
[1726561313985,7.5211,132.96,132.92,5.66947681]
[1726561314291,7.5211,132.96,132.91,42.8778]
[1726561314517,7.5211,132.96,132.92,13.19271471]
[1726561314810,3.95097832,132.94,132.87,23.0484]
[1726561315000,3.95097832,132.94,132.88,5.67297943]
[1726561315208,3.95097832,132.94,132.87,23.0484]
[1726561315402,3.95097832,132.94,132.88,5.67336183]
[1726561315721,3.95097832,132.94,132.87,23.0484]
[1726561315919,7.5234,132.92,132.88,5.67411928]
[1726561316214,7.5234,132.92,132.87,23.0484]
[1726561316415,7.5234,132.92,132.88,5.67379828]
[1726561316584,7.5234,132.92,132.87,23.0484]
[1726561318619,7.524,132.91,132.87,23.0484]
[1726561320004,7.5235,132.92,132.88,7.5255]
[1726561320215,7.5227,132.93,132.89,7.525]
[1726561321918,11.47207832,132.96,132.92,7.5233]
[1726561322117,7.5211,132.96,132.91,26.3328]
[1726561329427,7.5216,132.95,132.91,26.3328]
[1726561330523,7.5215,132.96,132.91,26.3328]
[1726561330728,7.5217,132.95,132.91,26.3328]
[1726561330930,7.5222,132.94,132.9,7.5244]
[1726561331101,7.5228,132.93,132.89,7.5249]
[1726561331308,22.75247832,132.97,132.88,18.813]
[1726561331621,7.5233,132.92,132.88,26.3384]
[1726561335542,7.5239,132.91,132.87,23.0484]
[1726561338427,7.5246,132.9,132.87,15.5224]
[1726561338642,7.525,132.89,132.87,15.5224]
[1726561339230,7.526,132.88,132.86,0.260412]
[1726561339439,23.776884,132.91,132.86,0.260412]
[1726561340055,7.5261,132.87,132.86,0.260412]
[1726561348383,7.5272,132.86,132.82,19.082312]
[1726561348548,23.776884,132.87,132.82,19.082312]
[1726561348746,7.5273,132.85,132.82,0.260412]
[1726561352353,7.5278,132.84,132.82,0.260412]
[1726561353378,7.5274,132.85,132.82,0.260412]
[1726561354783,7.5279,132.84,132.82,0.260412]
[1726561366377,7.5267,132.86,132.82,7.789312]
[1726561366557,18.8129,132.89,132.82,0.260412]
[1726561366758,7.5257,132.88,132.84,7.5277]
[1726561366983,122.8,132.91,132.84,16.5858]
[1726561367187,23.0349,132.92,132.84,18.09098913]
[1726561367491,26.04172366,132.92,132.84,18.09098913]
[1726561367793,26.04172366,132.92,132.84,16.5858]
[1726561368191,7.5245,132.9,132.85,7.5267]
[1726561369184,7.5245,132.9,132.86,7.5266]
[1726561370198,7.524,132.91,132.87,7.5261]
[1726561370403,7.5234,132.92,132.88,9.03039977]
[1726561370990,7.5234,132.92,132.88,7.5255]
[1726561373479,7.5234,132.92,132.88,9.03033403]
[1726561373678,7.5234,132.92,132.88,23.8956]
[1726561379604,7.5234,132.92,132.88,16.3701]
[1726561379820,7.5223,132.94,132.89,20.31665231]
[1726561380221,7.5223,132.94,132.9,7.524]
[1726561380447,7.5223,132.94,132.9,14.1207]
[1726561386534,0.260412,132.96,132.9,6.5967]
[1726561386737,7.5233,132.92,132.9,6.5967]
[1726561387035,7.5233,132.92,132.88,23.8955]
[1726561387204,7.5239,132.91,132.88,16.3701]
[1726561388837,23.776884,132.93,132.88,16.3701]
[1726561389011,7.525,132.89,132.88,16.3701]
[1726561391341,7.525,132.89,132.87,6.2478]
[1726561391746,7.525,132.89,132.86,18.8157]
[1726561401331,7.5256,132.88,132.85,15.7498]
[1726561406159,7.5251,132.89,132.85,23.277]
[1726561409369,7.5257,132.88,132.85,15.7498]
[1726561421784,7.5264,132.87,132.85,15.7498]
[1726561425878,7.5267,132.86,132.85,15.7498]
[1726561426212,23.776884,132.89,132.85,15.7498]
[1726561426691,7.5265,132.87,132.85,15.7498]
[1726561428294,7.5267,132.86,132.84,6.2598]
[1726561432201,7.5263,132.87,132.84,6.2598]
[1726561442090,7.5267,132.86,132.84,6.2598]
[1726561442587,7.5263,132.87,132.84,6.2598]
[1726561445580,7.527,132.86,132.84,6.2598]
[1726561445897,7.5272,132.85,132.82,16.286112]
[1726561446096,7.5272,132.85,132.83,5.68852846]
[1726561446404,7.5272,132.85,132.82,16.286112]
[1726561446609,7.5272,132.85,132.83,5.68904253]
[1726561446807,7.5272,132.85,132.82,16.286112]
[1726561447001,7.5272,132.85,132.83,5.68856814]
[1726561447185,7.5272,132.85,132.82,16.286112]
[1726561447387,7.5272,132.85,132.83,5.68847621]
[1726561447684,7.5272,132.85,132.82,16.286112]
[1726561447884,7.5272,132.85,132.83,5.68847493]
[1726561448190,7.5272,132.85,132.82,16.286112]
[1726561448484,7.5272,132.85,132.83,5.6873553]
[1726561448703,7.5272,132.85,132.82,16.286112]
[1726561448904,7.5272,132.85,132.83,5.68737963]
[1726561449091,7.5272,132.85,132.82,16.286112]
[1726561449291,7.5272,132.85,132.83,5.68720169]
[1726561449493,7.5272,132.85,132.82,16.286112]
[1726561449796,7.5272,132.85,132.83,5.68711316]
[1726561450109,7.5272,132.85,132.82,16.286112]
[1726561450408,7.5272,132.85,132.83,5.68711784]
[1726561450594,7.5272,132.85,132.82,16.286112]
[1726561456723,7.5278,132.84,132.82,16.286112]
[1726561458827,7.5284,132.83,132.82,0.260412]
[1726561467789,7.5284,132.83,132.78,7.791412]
[1726561467790,7.5293,132.82,132.78,0.260412]
[1726561468718,7.5299,132.81,132.78,0.260412]
[1726561474723,7.5291,132.82,132.78,23.343112]
[1726561474893,7.5283,132.84,132.79,7.5304]
[1726561475916,22.75734462,132.86,132.78,29.643012]
[1726561476124,7.529,132.82,132.78,29.643012]
[1726561477213,7.5283,132.84,132.79,18.8265]
[1726561477412,25.82508523,132.86,132.8,1.50576266]
[1726561477413,7.00778523,132.86,132.8,1.50576266]
[1726561478125,7.5274,132.85,132.81,7.529]
[1726561478321,7.5279,132.84,132.8,7.5299]
[1726561480526,3.07177837,132.87,132.79,26.357]
[1726561480527,7.5285,132.83,132.79,26.357]
[1726561482310,7.5285,132.83,132.8,1.50582272]
[1726561482497,7.5285,132.83,132.79,26.357]
[1726561490131,7.5289,132.82,132.79,18.8265]
[1726561497745,7.5289,132.82,132.78,29.642912]
[1726561497746,18.8186,132.85,132.78,0.260412]
[1726561497950,7.5306,132.79,132.78,0.260412]
[1726561500357,7.5306,132.79,132.75,16.2013]
[1726561500358,7.5306,132.79,132.75,13.461712]
[1726561503241,7.5306,132.79,132.75,20.994512]
[1726561503628,7.5302,132.8,132.75,20.994512]
[1726561505049,7.5308,132.79,132.75,20.994512]
[1726561505752,7.5312,132.78,132.75,13.461712]
[1726561506117,7.5319,132.77,132.74,6.607112]
[1726561508832,7.5319,132.77,132.74,0.260412]
[1726561510643,7.5325,132.76,132.74,0.260412]
[1726561510824,7.5329,132.75,132.74,0.260412]
[1726561517060,7.5324,132.76,132.74,0.260412]
[1726561518256,7.5329,132.75,132.74,0.260412]
[1726561522665,7.5325,132.76,132.74,0.260412]
[1726561523850,7.531,132.79,132.75,7.5329]
[1726561524172,7.5307,132.79,132.75,7.5329]
[1726561524552,7.5307,132.79,132.74,32.841812]
[1726561524739,122.8,132.82,132.74,25.308412]
[1726561525050,7.75448586,132.84,132.74,25.308412]
[1726561525572,7.5297,132.81,132.76,7.5322]
[1726561525939,7.5302,132.8,132.75,23.9076]
[1726561527374,7.5296,132.81,132.76,7.5322]
[1726561530174,7.5304,132.8,132.75,23.9075]
[1726561534183,7.5304,132.8,132.76,7.5323]
[1726561541182,23.776884,132.83,132.75,16.3748]
[1726561541359,7.5308,132.79,132.75,23.9073]
[1726561542479,7.5303,132.8,132.75,23.9073]
[1726561545197,7.5303,132.8,132.76,7.5323]
[1726561555200,7.5313,132.78,132.75,16.3748]
[1726561555505,23.776884,132.81,132.75,16.3748]
[1726561555506,7.5318,132.77,132.75,16.3748]
[1726561557508,7.5313,132.78,132.75,16.3748]
[1726561558206,7.5307,132.79,132.75,23.9076]
[1726561560115,7.5313,132.78,132.75,16.3748]
[1726561564313,7.5308,132.79,132.75,23.9073]
[1726561564500,3.94004462,132.81,132.76,7.5323]
[1726561564693,3.94004462,132.81,132.75,23.9075]
[1726561565110,7.5307,132.79,132.75,23.9075]
[1726561572010,3.94004462,132.8,132.75,16.3748]
[1726561572426,7.5318,132.77,132.75,16.3748]
[1726561576914,7.5323,132.76,132.75,16.3748]
[1726561579004,7.5319,132.77,132.75,16.3748]
[1726561588611,7.5329,132.75,132.74,0.260412]
[1726561590131,7.5327,132.76,132.74,0.260412]
[1726561592842,7.5329,132.75,132.74,0.260412]
[1726561597819,23.776884,132.75,132.71,22.2577]
[1726561598014,23.776884,132.75,132.7,0.260412]
[1726561598015,7.5344,132.73,132.7,0.260412]
[1726561598213,7.5347,132.72,132.7,0.260412]
[1726561600342,7.5352,132.71,132.7,0.260412]
[1726561623948,7.5352,132.71,132.66,7.798012]
[1726561623949,23.776884,132.71,132.66,0.260412]
[1726561624143,7.5364,132.69,132.66,0.260412]
[1726561627143,7.5372,132.68,132.66,0.260412]
[1726561629858,7.5374,132.67,132.66,0.260412]
[1726561630673,7.537,132.68,132.66,0.260412]
[1726561631468,7.5374,132.67,132.66,0.260412]
[1726561635453,7.537,132.68,132.66,0.260412]
[1726561637852,7.5365,132.69,132.66,0.260412]
[1726561640184,7.5359,132.7,132.66,0.260412]
[1726561641388,7.5359,132.7,132.66,7.798412]
[1726561642196,7.5354,132.71,132.66,7.798412]
[1726561643279,7.5348,132.72,132.68,7.5369]
[1726561643600,7.5341,132.73,132.69,15.7461]
[1726561643799,7.5341,132.73,132.69,23.2824]
[1726561644581,7.5353,132.71,132.69,15.7461]
[1726561645487,7.5346,132.73,132.69,15.7461]
[1726561645973,7.5348,132.72,132.69,15.7461]
[1726561646173,23.94004462,132.75,132.69,23.2823]
[1726561646370,20.0,132.75,132.69,23.2823]
[1726561646599,23.94004462,132.77,132.71,7.5349]
[1726561646768,7.5328,132.76,132.71,7.5349]
[1726561646969,7.533,132.75,132.71,7.5349]
[1726561647176,7.5324,132.76,132.71,7.5349]
[1726561647395,3.94004462,132.79,132.73,16.1387]
[1726561647702,7.5322,132.77,132.73,16.1387]
[1726561648092,7.5324,132.76,132.73,16.1387]
[1726561650383,7.5317,132.78,132.73,16.1387]
[1726561650705,7.5318,132.77,132.73,16.1387]
[1726561651284,7.5318,132.77,132.73,23.6727]
[1726561660608,7.5318,132.77,132.74,6.2712]
[1726561664815,7.5329,132.75,132.74,6.2712]
[1726561666018,7.5326,132.76,132.74,6.2712]
[1726561668402,7.5319,132.77,132.74,6.2712]
[1726561670317,7.5324,132.76,132.74,6.2712]
[1726561670500,7.5333,132.75,132.73,16.1387]
[1726561670814,7.5335,132.74,132.73,16.1387]
[1726561671018,43.776884,132.78,132.71,6.5686]
[1726561671019,7.534,132.73,132.71,6.5686]
[1726561671194,7.5352,132.71,132.7,15.8558]
[1726561672300,7.5362,132.7,132.67,6.5686]
[1726561677522,7.5353,132.71,132.67,6.5686]
[1726561681735,30.60113783,132.74,132.69,7.5361]
[1726561681901,20.0,132.74,132.69,7.5361]
[1726561682425,7.5344,132.73,132.69,7.5361]
[1726561688214,7.5344,132.73,132.69,7.5361]
[1726561690121,7.5344,132.73,132.69,22.9859]
[1726561703453,7.5337,132.74,132.7,7.5357]
[1726561704140,7.5341,132.73,132.69,22.9859]
[1726561710442,7.5341,132.73,132.7,7.5357]
[1726561712437,7.5341,132.73,132.69,22.9859]
[1726561713762,7.535,132.72,132.69,15.4498]
[1726561714635,7.5353,132.71,132.69,15.4498]
[1726561719357,7.5357,132.7,132.69,15.4498]
[1726561719552,7.5353,132.71,132.69,15.4498]
[1726561730866,7.5359,132.7,132.67,6.5686]
[1726561740079,7.5353,132.71,132.67,14.1059]
[1726561740874,11.48937622,132.73,132.69,7.5363]
[1726561741175,3.95517622,132.74,132.7,23.9301]
[1726561741584,11.48867622,132.74,132.7,23.9301]
[1726561751490,7.5335,132.74,132.7,23.9301]
[1726561751878,11.48817622,132.75,132.71,7.535]
[1726561752101,11.48817622,132.75,132.71,13.624]
[1726561752288,7.533,132.75,132.71,13.624]
[1726561752493,11.48767622,132.76,132.72,7.5345]
[1726561752674,7.5325,132.76,132.72,7.5345]
[1726561755307,23.776884,132.77,132.71,24.9266]
[1726561755604,7.5335,132.74,132.71,24.9266]
[1726561757806,7.533,132.75,132.71,32.4617]
[1726561762707,7.5335,132.74,132.71,24.9266]
[1726561768391,7.5331,132.75,132.71,32.4618]
[1726561775217,3.95517622,132.77,132.71,32.4618]
[1726561775218,7.5325,132.76,132.72,7.5345]
[1726561776919,7.5325,132.76,132.71,24.9266]
[1726561777221,7.5318,132.77,132.73,23.1227]
[1726561780200,7.5313,132.78,132.74,9.03985952]
[1726561780399,7.5313,132.78,132.74,7.5334]
[1726561781421,23.776884,132.78,132.73,15.5887]
[1726561781622,7.5324,132.76,132.73,15.5887]
[1726561784494,7.5319,132.77,132.73,15.5887]
[1726561786197,7.5319,132.77,132.73,23.1227]
[1726561786923,7.5319,132.77,132.73,15.5887]
[1726561790004,7.5323,132.76,132.73,15.5887]
[1726561791124,7.5331,132.75,132.73,15.5887]
[1726561792014,7.5325,132.76,132.73,15.5887]
[1726561800350,3.95517622,132.78,132.73,17.09453254]
[1726561800646,11.48687622,132.78,132.74,7.5334]
[1726561800833,7.5321,132.77,132.73,15.5887]
[1726561801022,7.5324,132.76,132.73,15.5887]
[1726561805049,7.5329,132.75,132.73,15.5887]
[1726561805745,7.5326,132.76,132.73,15.5887]
[1726561808432,11.48707622,132.77,132.73,23.1226]
[1726561809052,3.95517622,132.77,132.74,7.5333]
[1726561812957,7.5313,132.78,132.74,7.5333]
[1726561812958,3.95517622,132.78,132.75,6.5792]
[1726561813132,0.260412,132.8,132.77,7.5318]
[1726561813335,0.260412,132.8,132.78,9.03704279]
[1726561814055,0.260412,132.8,132.79,7.5306]
[1726561814355,0.260412,132.8,132.79,31.64285343]
[1726561815061,0.260412,132.84,132.8,18.8245]
[1726561815360,0.260412,132.84,132.82,7.5285]
[1726561816352,0.260412,132.84,132.83,7.5284]
[1726561816553,0.260412,132.84,132.83,13.9036]
[1726561816757,0.260412,132.84,132.83,15.40892264]
[1726561817057,0.260412,132.84,132.83,13.9036]
[1726561817725,0.260412,132.84,132.83,6.3752]
[1726561817961,0.260412,132.84,132.81,15.0467]
[1726561820157,0.260412,132.84,132.81,16.55240824]
[1726561820452,0.260412,132.84,132.81,22.576]
[1726561820836,0.260412,132.84,132.82,7.5287]
[1726561821227,0.260412,132.84,132.81,33.87]
[1726561821228,0.260412,132.84,132.83,7.5284]
[1726561826537,0.260412,132.84,132.82,7.5289]
[1726561826842,0.260412,132.84,132.81,33.87]
[1726561828362,0.260412,132.84,132.81,41.3993]
[1726561831466,0.260412,132.84,132.82,7.5289]
[1726561833269,0.260412,132.84,132.83,7.5284]
[1726561834563,0.260412,132.84,132.82,7.5287]
[1726561836166,0.260412,132.84,132.83,7.5284]
[1726561837769,0.260412,132.84,132.81,41.399]
[1726561842591,7.788212,132.84,132.81,33.87]
[1726561842781,0.260412,132.84,132.81,41.3994]
[1726561846673,7.788212,132.84,132.81,33.87]
[1726561848083,7.788212,132.84,132.81,18.8233]
[1726561848489,0.260412,132.84,132.8,7.5299]
[1726561848688,7.5284,132.83,132.79,7.5305]
[1726561849670,7.788412,132.84,132.79,7.5305]
[1726561850169,7.788412,132.84,132.8,7.5299]
[1726561850370,0.260412,132.84,132.8,18.8248]
[1726561851193,0.260412,132.84,132.81,7.5291]
[1726561861210,0.260412,132.84,132.82,7.5289]
[1726561866585,4.21558822,132.84,132.81,7.5293]
[1726561867399,11.74358822,132.84,132.8,26.3548]
[1726561871813,4.21558822,132.84,132.81,7.5292]
[1726561872329,4.21558822,132.84,132.82,7.5289]
[1726561880235,4.21558822,132.84,132.81,7.5293]
[1726561881433,0.260412,132.84,132.81,7.5293]
[1726561882328,4.21558822,132.84,132.81,7.5293]
[1726561884415,4.21558822,132.84,132.82,7.5289]
[1726561890217,4.21558822,132.84,132.8,18.8248]
[1726561891549,11.74378822,132.84,132.8,26.3548]
[1726561905853,3.95517622,132.83,132.8,26.3548]
[1726561907156,11.74378822,132.84,132.8,26.3548]
[1726561907359,11.74378822,132.84,132.81,7.5295]
[1726561907954,3.95517622,132.83,132.81,7.5295]
[1726561910164,4.21558822,132.84,132.81,7.5295]
[1726561910366,3.95517622,132.83,132.81,7.5295]
[1726561911151,4.21558822,132.84,132.81,7.5295]
[1726561920266,11.74348822,132.84,132.8,26.3547]
[1726561921372,3.95517622,132.83,132.8,26.3547]
[1726561922366,11.74348822,132.84,132.8,26.3547]
[1726561922669,4.21558822,132.84,132.81,7.529]
[1726561923645,4.21558822,132.84,132.8,26.3547]
[1726561925646,4.21558822,132.84,132.81,7.5294]
[1726561933246,11.74338822,132.84,132.8,26.3547]
[1726561936963,7.5284,132.83,132.8,18.8248]
[1726561937156,11.74358822,132.84,132.8,26.3548]
[1726561937685,7.5284,132.83,132.8,18.8248]
[1726561937877,11.74358822,132.84,132.8,26.3548]
[1726561941946,4.21558822,132.84,132.81,7.5294]
[1726561943575,3.95517622,132.83,132.81,7.5294]
[1726561947084,3.95517622,132.83,132.8,26.3548]
[1726561949065,11.48357622,132.83,132.79,7.5306]
[1726561950772,3.95517622,132.83,132.8,7.53]
[1726561962984,11.48357622,132.83,132.79,26.3568]
[1726561987888,3.95517622,132.82,132.79,26.3568]
[1726562002547,11.48357622,132.83,132.79,26.3568]
[1726562002728,3.95517622,132.82,132.79,26.3568]
[1726562025053,11.48417622,132.82,132.78,7.531]
[1726562026140,7.5296,132.81,132.77,7.5316]
[1726562026345,54.11876836,132.83,132.76,18.8299]
[1726562027256,11.49243821,132.8,132.76,26.362]
[1726562029066,3.96193821,132.8,132.77,1.50616741]
[1726562029250,3.96193821,132.8,132.78,7.5308]
[1726562029453,3.96193821,132.8,132.79,7.5306]
[1726562029968,7.92387643,132.81,132.79,7.5306]
[1726562039270,3.9628211,132.82,132.79,7.5306]
[1726562040274,11.4919211,132.82,132.78,26.3589]
[1726562040475,7.5296,132.81,132.78,18.8277]
[1726562040681,7.5296,132.81,132.77,7.5316]
[1726562044260,11.4924211,132.81,132.77,7.5316]
[1726562044589,7.5296,132.81,132.77,7.5316]
[1726562047182,11.4918211,132.82,132.78,7.531]
[1726562047587,11.4918211,132.82,132.79,7.5306]
[1726562050167,3.9628211,132.82,132.8,7.53]
[1726562051083,3.9628211,132.82,132.79,18.8266]
[1726562052575,11.4918211,132.82,132.77,7.5316]
[1726562052764,7.5296,132.81,132.77,7.5316]
[1726562053167,11.4924211,132.81,132.77,7.5316]
[1726562054889,3.9628211,132.81,132.77,7.5316]
[1726562062593,11.4919211,132.82,132.77,7.5316]
[1726562065067,3.9628211,132.81,132.77,7.5316]
[1726562065483,7.5295,132.81,132.77,7.5316]
[1726562068408,11.4919211,132.82,132.78,7.5312]
[1726562071417,7.5295,132.81,132.78,7.5312]
[1726562071900,7.5295,132.81,132.77,7.5316]
[1726562073814,23.776884,132.81,132.73,24.9659]